[Event "WSCC 50 Open 2017"]
[Site "?"]
[Date "2017.11.15"]
[Round "8"]
[White "Bagaturov, Giorgi"]
[Black "Prasad, Devaki V"]
[Result "1/2-1/2"]
[ECO "D70"]
[WhiteElo "2399"]
[BlackElo "2290"]
[PlyCount "98"]
[EventDate "2017.??.??"]
[EventType "swiss"]
[EventCountry "ITA"]
[SourceTitle "Acqui Terme"]
[TimeControl "40/5400+30:1800+30"]
[WhiteClock "0:06:09"]
[BlackClock "0:12:16"]

1. d4 {[%emt 0:00:00]} Nf6 {[%emt 0:00:10]} 2. c4 {[%emt 0:00:09]} g6 {[%emt 0:00:08]} 3. Nf3 {[%emt 0:01:11]} Bg7 {[%emt 0:00:08]} 4. g3 {[%emt 0:01:50]} O-O {[%emt 0:00:17]} 5. Bg2 {[%emt 0:00:09]} d6 {[%emt 0:00:23]} 6. O-O {[%emt 0:01:17]} Nbd7 {[%emt 0:00:39]} 7. Qc2 {[%emt 0:05:51]} e5 {[%emt 0:00:34]} 8. Rd1 {[%emt 0:00:07]} Re8 {[%emt 0:01:45]} 9. Nc3 {[%emt 0:00:33]} exd4 {[%emt 0:19:58]} 10. Nxd4 {[%emt 0:00:17]} Nc5 {[%emt 0:00:30]} 11. e4 {[%emt 0:04:48]} Qe7 {[%emt 0:08:47]} 12. f3 {[%emt 0:00:45]} c6 {[%emt 0:03:50]} 13. Be3 {[%emt 0:08:28]} a5 {[%emt 0:03:53]} 14. b3 {[%emt 0:04:35]} h5 {[%emt 0:03:19]} 15. Bf2 {[%emt 0:02:12]} Nh7 {[%emt 0:04:07]} 16. h3 {[%emt 0:11:40]} Ng5 {[%emt 0:01:56]} 17. Kh2 {[%emt 0:00:23]} h4 {[%emt 0:01:35]} 18. g4 {[%emt 0:19:01]} Be5+ {[%emt 0:01:28]} 19. Kh1 {[%emt 0:00:04]} Nge6 {[%emt 0:09:17]} 20. Nde2 {[%emt 0:05:55]} Qf6 {[%emt 0:00:55]} 21. Be3 {[%emt 0:00:46]} g5 {[%emt 0:04:03]} 22. Rac1 {[%emt 0:04:11]} Nf4 {[%emt 0:10:37]} 23. Nxf4 {[%emt 0:03:01]} gxf4 {[%emt 0:00:45]} 24. Bf2 {[%emt 0:01:07]} Be6 {[%emt 0:08:10]} 25. Ne2 {[%emt 0:02:18]} Nd7 {[%emt 0:03:01]} 26. Rd2 {[%emt 0:02:16]} c5 {[%emt 0:01:45]} 27. Nc3 {[%emt 0:01:32]} Nf8 {[%emt 0:02:42]} 28. Rd3 {[%emt 0:06:52]} Red8 {[%emt 0:01:47]} 29. Rcd1 {[%emt 0:01:22]} Rd7 {[%emt 0:00:13]} 30. Nb5 {[%emt 0:02:18]} Qe7 {[%emt 0:02:28]} 31. Bf1 {[%emt 0:02:47]} b6 {[%emt 0:00:48]} 32. Nc3 {[%emt 0:00:24]} Ng6 {[%emt 0:00:36]} 33. Nd5 {[%emt 0:02:23]} Bxd5 {[%emt 0:00:14]} 34. exd5 {[%emt 0:00:28]} a4 {[%emt 0:00:59]} 35. R3d2 {[%emt 0:00:20]} axb3 {[%emt 0:00:16]} 36. axb3 {[%emt 0:00:04]} Rda7 {[%emt 0:00:14]} 37. Bd3 {[%emt 0:00:23]} Kg7 {[%emt 0:00:27]} 38. b4 {[%emt 0:04:17]} Ra1 {[%emt 0:00:12]} 39. bxc5 {[%emt 0:00:31]} bxc5 {[%emt 0:00:07]} 40. Kg2 {[%emt 0:00:47]} R8a3 {[%emt 0:32:08]} 41. Re2 {[%emt 0:32:06]} Rxd1 {[%emt 0:04:03]} 42. Qxd1 {[%emt 0:00:50]} Qf6 {[%emt 0:00:00]} 43. Qb1 {[%emt 0:00:00]} Ra1 {[%emt 0:00:00]} 44. Qb8 {[%emt 0:00:00]} Bd4 {[%emt 0:00:00]} 45. Bxg6 {[%emt 0:00:00]} Bxf2 {[%emt 0:00:00]} 46. Bxf7 {[%emt 0:00:00]} Rg1+ {[%emt 0:00:00]} 47. Kh2 {[%emt 0:00:00]} Rh1+ {[%emt 0:00:00]} 48. Kg2 {[%emt 0:00:00]} Rg1+ {[%emt 0:00:00]} 49. Kh2 {[%emt 0:00:00]} Rh1+ 1/2-1/2

[Event "WSCC 50 Open 2017"]
[Site "?"]
[Date "2017.11.15"]
[Round "8"]
[White "Buchal, Stephan"]
[Black "Van den Bersselaar, Jeroen"]
[Result "1-0"]
[ECO "A05"]
[WhiteElo "2347"]
[BlackElo "2189"]
[PlyCount "53"]
[EventDate "2017.??.??"]
[EventType "swiss"]
[EventCountry "ITA"]
[SourceTitle "Acqui Terme"]
[TimeControl "40/5400+30:1800+30"]
[WhiteClock "0:18:05"]
[BlackClock "0:10:37"]

1. Nf3 {[%emt 0:00:00]} Nf6 {[%emt 0:02:39]} 2. c4 {[%emt 0:00:07]} Nc6 {[%emt 0:01:32]} 3. g3 {[%emt 0:02:45]} e5 {[%emt 0:00:12]} 4. Bg2 {[%emt 0:00:36]} d5 {[%emt 0:00:35]} 5. cxd5 {[%emt 0:00:18]} Nxd5 {[%emt 0:00:07]} 6. O-O {[%emt 0:01:00]} Nb6 {[%emt 0:00:51]} 7. a3 {[%emt 0:02:20]} Be7 {[%emt 0:01:57]} 8. d3 {[%emt 0:02:50]} O-O {[%emt 0:00:47]} 9. b4 {[%emt 0:01:39]} Be6 {[%emt 0:02:42]} 10. Bb2 {[%emt 0:01:33]} f6 {[%emt 0:03:09]} 11. Nbd2 {[%emt 0:01:44]} Qd7 {[%emt 0:12:44]} 12. Rc1 {[%emt 0:03:59]} a5 {[%emt 0:06:08]} 13. b5 {[%emt 0:22:20]} Nd8 {[%emt 0:00:10]} 14. d4 {[%emt 0:05:09]} Qxb5 {[%emt 0:07:31]} 15. Ba1 {[%emt 0:02:50]} Bxa3 {[%emt 0:08:12]} 16. Rxc7 {[%emt 0:15:02]} Nd5 {[%emt 0:13:05]} 17. Rc2 {[%emt 0:00:49]} Nc6 {[%emt 0:00:56]} 18. e4 {[%emt 0:03:14]} Nb6 {[%emt 0:07:17]} 19. d5 {[%emt 0:01:38]} Nxd5 {[%emt 0:00:45]} 20. exd5 {[%emt 0:00:06]} Bxd5 {[%emt 0:00:07]} 21. Nb1 {[%emt 0:01:27]} Bb4 {[%emt 0:01:31]} 22. Nc3 {[%emt 0:00:43]} Bxc3 {[%emt 0:00:38]} 23. Rxc3 {[%emt 0:01:13]} Rfd8 {[%emt 0:04:11]} 24. Qc1 {[%emt 0:04:26]} Qa6 {[%emt 0:07:56]} 25. Rd1 {[%emt 0:04:01]} a4 {[%emt 0:00:49]} 26. Bf1 {[%emt 0:01:50]} Bxf3 {[%emt 0:06:22]} 27. Rxd8+ {[%emt 0:01:46]} 1-0

[Event "WSCC 50 Open 2017"]
[Site "?"]
[Date "2017.11.15"]
[Round "8"]
[White "Brendel, Oliver"]
[Black "Cetinkaya, Vedat Ali"]
[Result "1-0"]
[ECO "B17"]
[WhiteElo "2334"]
[BlackElo "1968"]
[PlyCount "67"]
[EventDate "2017.??.??"]
[EventType "swiss"]
[EventCountry "ITA"]
[SourceTitle "Acqui Terme"]
[TimeControl "40/5400+30:1800+30"]
[WhiteClock "0:09:28"]
[BlackClock "0:10:30"]

1. e4 {[%emt 0:00:00]} c6 {[%emt 0:00:21]} 2. d4 {[%emt 0:00:00]} d5 {[%emt 0:00:11]} 3. Nc3 {[%emt 0:00:08]} dxe4 {[%emt 0:00:20]} 4. Nxe4 {[%emt 0:00:08]} Nd7 {[%emt 0:00:15]} 5. Ng5 {[%emt 0:00:50]} Ngf6 {[%emt 0:00:36]} 6. Bd3 {[%emt 0:00:56]} e6 {[%emt 0:00:26]} 7. N1f3 {[%emt 0:00:29]} Bd6 {[%emt 0:03:01]} 8. Qe2 {[%emt 0:00:37]} h6 {[%emt 0:08:50]} 9. Ne4 {[%emt 0:00:20]} Nxe4 {[%emt 0:00:11]} 10. Qxe4 {[%emt 0:00:10]} Nf6 {[%emt 0:00:39]} 11. Qe2 {[%emt 0:00:19]} O-O {[%emt 0:02:31]} 12. Bd2 {[%emt 0:06:06]} Qc7 {[%emt 0:06:12]} 13. O-O-O {[%emt 0:04:03]} c5 {[%emt 0:15:36]} 14. dxc5 {[%emt 0:09:02]} Qxc5 {[%emt 0:01:08]} 15. Rhe1 {[%emt 0:05:24]} Rd8 {[%emt 0:08:07]} 16. Ne5 {[%emt 0:11:01]} Bxe5 {[%emt 0:12:27]} 17. Qxe5 {[%emt 0:00:18]} Qxe5 {[%emt 0:01:14]} 18. Rxe5 {[%emt 0:00:06]} Bd7 {[%emt 0:00:12]} 19. f3 {[%emt 0:09:15]} Bc6 {[%emt 0:01:04]} 20. Be3 Nd5 {[%emt 0:03:27]} 21. Bf2 {[%emt 0:17:12]} Nf4 {[%emt 0:10:23]} 22. Bf1 {[%emt 0:00:32]} Bd5 {[%emt 0:00:19]} 23. b3 {[%emt 0:06:07]} Rdc8 {[%emt 0:01:58]} 24. Kb2 {[%emt 0:01:32]} b5 {[%emt 0:00:46]} 25. Bxb5 {[%emt 0:07:10]} Nxg2 {[%emt 0:00:51]} 26. Rexd5 {[%emt 0:01:15]} exd5 {[%emt 0:00:36]} 27. Rxd5 {[%emt 0:00:11]} a6 {[%emt 0:06:06]} 28. Bc4 {[%emt 0:00:20]} Rc7 {[%emt 0:01:01]} 29. Ra5 {[%emt 0:05:27]} Rd7 {[%emt 0:01:58]} 30. Rxa6 {[%emt 0:02:49]} Rad8 {[%emt 0:02:29]} 31. Ra7 {[%emt 0:03:18]} Rd2 {[%emt 0:01:36]} 32. Rxf7 {[%emt 0:01:02]} Kh8 {[%emt 0:00:08]} 33. Bb6 {[%emt 0:00:34]} Re8 {[%emt 0:01:31]} 34. Ba5 {[%emt 0:00:51]} 1-0

[Event "WSCC 50 Open 2017"]
[Site "?"]
[Date "2017.11.15"]
[Round "8"]
[White "Sarno, Spartaco"]
[Black "Vepkhvishvili, Varlam"]
[Result "1-0"]
[ECO "A16"]
[WhiteElo "2327"]
[BlackElo "2048"]
[PlyCount "99"]
[EventDate "2017.??.??"]
[EventType "swiss"]
[EventCountry "ITA"]
[SourceTitle "Acqui Terme"]
[TimeControl "40/5400+30:1800+30"]
[WhiteClock "0:02:43"]
[BlackClock "0:28:47"]

1. c4 {[%emt 0:00:09]} Nf6 {[%emt 0:00:12]} 2. Nc3 {[%emt 0:00:18]} g6 {[%emt 0:00:07]} 3. g3 {[%emt 0:00:15]} Bg7 {[%emt 0:00:09]} 4. Bg2 {[%emt 0:00:08]} O-O {[%emt 0:00:07]} 5. Nf3 {[%emt 0:00:43]} d6 {[%emt 0:00:17]} 6. O-O {[%emt 0:00:10]} c5 {[%emt 0:00:36]} 7. d4 {[%emt 0:01:54]} cxd4 {[%emt 0:00:23]} 8. Nxd4 {[%emt 0:00:07]} a6 {[%emt 0:00:27]} 9. b3 {[%emt 0:01:30]} Qc7 {[%emt 0:00:35]} 10. Bb2 {[%emt 0:00:24]} Nc6 {[%emt 0:00:34]} 11. Nc2 {[%emt 0:02:08]} Bd7 {[%emt 0:04:26]} 12. Qd2 {[%emt 0:02:49]} Rac8 {[%emt 0:02:32]} 13. Ne3 {[%emt 0:07:04]} Ne8 {[%emt 0:07:44]} 14. Rfd1 {[%emt 0:06:55]} Ne5 {[%emt 0:04:39]} 15. Rac1 {[%emt 0:03:15]} Bc6 {[%emt 0:02:12]} 16. Ned5 {[%emt 0:15:20]} Qd8 {[%emt 0:01:38]} 17. f4 {[%emt 0:03:04]} Ng4 {[%emt 0:01:15]} 18. h3 {[%emt 0:02:19]} Ngf6 {[%emt 0:02:57]} 19. e4 {[%emt 0:01:43]} b5 {[%emt 0:02:51]} 20. cxb5 {[%emt 0:03:03]} axb5 {[%emt 0:00:24]} 21. Nb4 {[%emt 0:02:03]} Ba8 {[%emt 0:08:59]} 22. e5 {[%emt 0:05:13]} Nd7 {[%emt 0:07:10]} 23. Bxa8 {[%emt 0:01:20]} Rxa8 {[%emt 0:00:07]} 24. Ncd5 {[%emt 0:00:19]} Nb8 {[%emt 0:01:29]} 25. Qg2 {[%emt 0:17:56]} Ra7 {[%emt 0:01:54]} 26. Bd4 {[%emt 0:00:10]} Ra3 {[%emt 0:05:33]} 27. Rc8 {[%emt 0:01:53]} Qd7 {[%emt 0:01:12]} 28. Rxb8 {[%emt 0:00:15]} dxe5 {[%emt 0:00:11]} 29. Bc5 {[%emt 0:05:20]} Kh8 {[%emt 0:05:20]} 30. Bxe7 {[%emt 0:09:55]} Rg8 {[%emt 0:00:12]} 31. Nc6 {[%emt 0:04:10]} Ra6 {[%emt 0:01:20]} 32. Ne3 {[%emt 0:02:09]} Qxc6 33. Qxc6 {[%emt 0:00:05]} Rxc6 {[%emt 0:00:40]} 34. Rdd8 {[%emt 0:00:04]} h5 {[%emt 0:03:13]} 35. Rxe8 {[%emt 0:00:13]} Rxe8 {[%emt 0:00:02]} 36. Rxe8+ {[%emt 0:00:02]} Kh7 {[%emt 0:00:05]} 37. Bf8 {[%emt 0:00:45]} Bf6 {[%emt 0:06:59]} 38. fxe5 {[%emt 0:00:22]} Bg5 {[%emt 0:00:02]} 39. Nd5 {[%emt 0:00:07]} h4 {[%emt 0:01:15]} 40. Nf6+ {[%emt 0:00:39]} Bxf6 {[%emt 0:30:12]} 41. exf6 {[%emt 0:30:03]} hxg3 {[%emt 0:00:43]} 42. Kg2 {[%emt 0:03:16]} Rxf6 {[%emt 0:01:06]} 43. Kxg3 {[%emt 0:00:15]} g5 {[%emt 0:01:12]} 44. Re5 {[%emt 0:00:37]} Kg6 {[%emt 0:00:34]} 45. Rxb5 {[%emt 0:00:13]} Rc6 {[%emt 0:00:30]} 46. Bc5 {[%emt 0:00:12]} Rc8 {[%emt 0:00:30]} 47. a4 {[%emt 0:00:17]} f5 {[%emt 0:00:39]} 48. a5 {[%emt 0:00:24]} Rd8 {[%emt 0:00:05]} 49. a6 {[%emt 0:00:24]} Kh5 {[%emt 0:00:54]} 50. a7 {[%emt 0:00:18]} 1-0

[Event "WSCC 50 Open 2017"]
[Site "?"]
[Date "2017.11.15"]
[Round "8"]
[White "Mantovani, Renzo"]
[Black "Vaglio Munoz, Jaime"]
[Result "1-0"]
[ECO "A40"]
[WhiteElo "2307"]
[BlackElo "2170"]
[PlyCount "59"]
[EventDate "2017.??.??"]
[EventType "swiss"]
[EventCountry "ITA"]
[SourceTitle "Acqui Terme"]
[TimeControl "40/5400+30:1800+30"]
[WhiteClock "0:20:59"]
[BlackClock "0:09:09"]

1. d4 {[%emt 0:00:00]} c6 {[%emt 0:00:06]} 2. e4 {[%emt 0:04:17]} Qa5+ {[%emt 0:00:07]} 3. c3 {[%emt 0:02:50]} d5 {[%emt 0:00:17]} 4. exd5 {[%emt 0:03:41]} Qxd5 {[%emt 0:00:48]} 5. Nf3 {[%emt 0:01:10]} Nf6 {[%emt 0:00:08]} 6. Nbd2 {[%emt 0:00:56]} Bg4 {[%emt 0:02:07]} 7. Bc4 {[%emt 0:05:33]} Bxf3 {[%emt 0:00:26]} 8. Qb3 {[%emt 0:09:31]} Qd6 {[%emt 0:42:10]} 9. Nxf3 {[%emt 0:04:32]} Nd5 {[%emt 0:04:11]} 10. Qxb7 {[%emt 0:02:55]} Nb6 {[%emt 0:00:45]} 11. Ne5 {[%emt 0:04:50]} f6 {[%emt 0:01:18]} 12. Nf7 {[%emt 0:11:31]} Qd7 {[%emt 0:00:12]} 13. Qxd7+ {[%emt 0:00:15]} Kxd7 {[%emt 0:03:32]} 14. Bb3 {[%emt 0:00:17]} Rg8 {[%emt 0:02:02]} 15. Ne5+ {[%emt 0:05:36]} fxe5 {[%emt 0:00:05]} 16. Bxg8 {[%emt 0:00:08]} exd4 {[%emt 0:00:28]} 17. cxd4 {[%emt 0:01:15]} h6 {[%emt 0:03:16]} 18. O-O {[%emt 0:02:18]} Na6 {[%emt 0:00:21]} 19. Bf4 {[%emt 0:09:24]} e6 {[%emt 0:03:31]} 20. Rfe1 {[%emt 0:01:59]} Re8 {[%emt 0:00:05]} 21. Bf7 {[%emt 0:00:25]} Re7 {[%emt 0:00:04]} 22. Bg6 {[%emt 0:00:10]} Nd5 {[%emt 0:01:16]} 23. Be5 {[%emt 0:00:44]} Nac7 {[%emt 0:02:08]} 24. Rac1 {[%emt 0:01:23]} a5 {[%emt 0:18:56]} 25. Rc5 {[%emt 0:02:45]} Re8 {[%emt 0:00:40]} 26. Bxe8+ {[%emt 0:01:17]} Nxe8 {[%emt 0:03:13]} 27. Rxa5 {[%emt 0:00:28]} Ndc7 {[%emt 0:02:18]} 28. Ra7 {[%emt 0:01:11]} c5 {[%emt 0:01:15]} 29. dxc5 {[%emt 0:02:18]} Bxc5 {[%emt 0:00:06]} 30. Rxc7+ {[%emt 0:00:22]} 1-0

[Event "WSCC 50 Open 2017"]
[Site "?"]
[Date "2017.11.15"]
[Round "8"]
[White "Contin, Daniel"]
[Black "Vebic, Kasem"]
[Result "0-1"]
[ECO "A05"]
[WhiteElo "2272"]
[BlackElo "2118"]
[PlyCount "110"]
[EventDate "2017.??.??"]
[EventType "swiss"]
[EventCountry "ITA"]
[SourceTitle "Acqui Terme"]
[TimeControl "40/5400+30:1800+30"]
[WhiteClock "0:10:26"]
[BlackClock "0:53:24"]

1. Nf3 {[%emt 0:00:50]} Nf6 {[%emt 0:00:48]} 2. c4 {[%emt 0:00:13]} c5 {[%emt 0:00:30]} 3. g3 {[%emt 0:00:50]} b6 {[%emt 0:00:29]} 4. Bg2 {[%emt 0:00:10]} Bb7 {[%emt 0:00:39]} 5. Nc3 {[%emt 0:00:30]} Nc6 {[%emt 0:01:39]} 6. O-O {[%emt 0:01:08]} g6 {[%emt 0:00:15]} 7. e3 {[%emt 0:03:19]} Bg7 {[%emt 0:01:13]} 8. d4 {[%emt 0:00:33]} d6 {[%emt 0:02:07]} 9. d5 {[%emt 0:03:19]} Na5 {[%emt 0:01:27]} 10. Nd2 {[%emt 0:01:33]} h5 {[%emt 0:00:43]} 11. h3 {[%emt 0:01:10]} Bc8 {[%emt 0:00:42]} 12. f4 {[%emt 0:01:31]} Bd7 {[%emt 0:00:40]} 13. e4 {[%emt 0:02:13]} Qc8 {[%emt 0:00:44]} 14. e5 {[%emt 0:00:46]} Nh7 {[%emt 0:01:45]} 15. e6 {[%emt 0:08:32]} fxe6 {[%emt 0:00:42]} 16. Qc2 {[%emt 0:09:05]} Nf8 {[%emt 0:01:20]} 17. dxe6 {[%emt 0:00:57]} Bxe6 {[%emt 0:01:24]} 18. Bxa8 {[%emt 0:04:17]} Qxa8 {[%emt 0:00:22]} 19. Nb5 {[%emt 0:00:07]} Kd8 {[%emt 0:01:34]} 20. Kh2 {[%emt 0:07:28]} Bf5 {[%emt 0:02:29]} 21. Qd1 {[%emt 0:00:12]} a6 {[%emt 0:01:59]} 22. Na3 {[%emt 0:03:14]} Qc8 {[%emt 0:00:35]} 23. h4 {[%emt 0:03:57]} Bd3 {[%emt 0:02:04]} 24. Rf3 {[%emt 0:00:55]} Bf5 {[%emt 0:00:46]} 25. Qe1 {[%emt 0:01:34]} Qb7 {[%emt 0:00:39]} 26. Qf1 {[%emt 0:02:53]} Nd7 {[%emt 0:00:20]} 27. Rd3 {[%emt 0:06:24]} Nf6 {[%emt 0:01:05]} 28. Nf3 {[%emt 0:00:13]} Qe4 {[%emt 0:02:20]} 29. Rd1 {[%emt 0:02:47]} Ng4+ {[%emt 0:00:52]} 30. Kg1 {[%emt 0:00:26]} Nc6 {[%emt 0:04:55]} 31. Re1 {[%emt 0:01:00]} Qd3 {[%emt 0:02:42]} 32. Qxd3 {[%emt 0:00:50]} Bxd3 {[%emt 0:00:15]} 33. Ng5 {[%emt 0:00:19]} Bd4+ {[%emt 0:03:05]} 34. Kg2 {[%emt 0:00:15]} Kd7 {[%emt 0:01:00]} 35. Rd1 {[%emt 0:04:09]} Bf5 {[%emt 0:00:35]} 36. Nb1 {[%emt 0:02:38]} Nb4 {[%emt 0:00:40]} 37. Nc3 {[%emt 0:01:29]} Nc2 {[%emt 0:01:19]} 38. Bd2 {[%emt 0:00:10]} e5 {[%emt 0:03:30]} 39. Rac1 {[%emt 0:01:17]} Nge3+ {[%emt 0:00:17]} 40. Kh1 {[%emt 0:02:34]} exf4 {[%emt 0:30:55]} 41. gxf4 {[%emt 0:31:03]} Nxd1 {[%emt 0:00:29]} 42. Rxd1 {[%emt 0:00:28]} Re8 {[%emt 0:00:17]} 43. Nd5 {[%emt 0:01:02]} b5 {[%emt 0:00:36]} 44. Bc3 {[%emt 0:01:00]} Re2 {[%emt 0:03:40]} 45. b3 {[%emt 0:02:56]} Ne3 {[%emt 0:02:15]} 46. Nxe3 {[%emt 0:00:19]} Bxe3 {[%emt 0:00:44]} 47. cxb5 {[%emt 0:05:14]} axb5 {[%emt 0:00:15]} 48. a4 {[%emt 0:00:02]} b4 {[%emt 0:00:33]} 49. Be5 {[%emt 0:04:07]} Bd2 {[%emt 0:00:33]} 50. Kg1 {[%emt 0:02:11]} Bc2 {[%emt 0:00:32]} 51. Ra1 {[%emt 0:00:20]} dxe5 {[%emt 0:00:52]} 52. a5 {[%emt 0:00:13]} Be3+ {[%emt 0:01:09]} 53. Kh1 {[%emt 0:00:29]} Bxb3 {[%emt 0:00:24]} 54. Ne4 {[%emt 0:01:51]} Bd5 {[%emt 0:00:15]} 55. Rd1 {[%emt 0:00:02]} Bd2 {[%emt 0:00:37]} 0-1

[Event "WSCC 50 Open 2017"]
[Site "?"]
[Date "2017.11.15"]
[Round "8"]
[White "Chapman, Terry P D"]
[Black "Welling, Gerard"]
[Result "0-1"]
[ECO "A04"]
[WhiteElo "2196"]
[BlackElo "2316"]
[PlyCount "80"]
[EventDate "2017.??.??"]
[EventType "swiss"]
[EventCountry "ITA"]
[SourceTitle "Acqui Terme"]
[TimeControl "40/5400+30:1800+30"]
[WhiteClock "0:00:32"]
[BlackClock "0:09:11"]

1. Nf3 {[%emt 0:00:00]} d6 {[%emt 0:01:30]} 2. d4 {[%emt 0:00:00]} Nf6 {[%emt 0:00:32]} 3. g3 {[%emt 0:01:02]} Nbd7 {[%emt 0:00:52]} 4. c4 {[%emt 0:02:05]} e5 {[%emt 0:00:11]} 5. Nc3 {[%emt 0:00:17]} c6 {[%emt 0:00:11]} 6. Bg2 {[%emt 0:03:01]} Be7 {[%emt 0:00:08]} 7. O-O {[%emt 0:01:46]} O-O {[%emt 0:00:08]} 8. e4 {[%emt 0:00:43]} a6 {[%emt 0:00:36]} 9. a4 {[%emt 0:04:45]} a5 {[%emt 0:00:08]} 10. h3 {[%emt 0:01:45]} exd4 {[%emt 0:03:34]} 11. Nxd4 {[%emt 0:00:28]} Nc5 {[%emt 0:00:11]} 12. Be3 {[%emt 0:05:13]} Re8 {[%emt 0:06:35]} 13. Re1 {[%emt 0:03:51]} Bf8 {[%emt 0:00:45]} 14. Qc2 {[%emt 0:01:26]} Nfd7 {[%emt 0:02:39]} 15. Rad1 {[%emt 0:04:29]} g6 {[%emt 0:03:06]} 16. f4 {[%emt 0:03:28]} Qb6 {[%emt 0:04:32]} 17. Kh2 {[%emt 0:15:24]} Bg7 {[%emt 0:06:54]} 18. Bf2 {[%emt 0:08:57]} Qc7 {[%emt 0:15:20]} 19. Ndb5 {[%emt 0:07:21]} cxb5 {[%emt 0:02:08]} 20. Nxb5 {[%emt 0:00:03]} Qb8 {[%emt 0:02:13]} 21. Nxd6 {[%emt 0:00:12]} Rf8 {[%emt 0:01:02]} 22. e5 {[%emt 0:03:04]} Ra6 {[%emt 0:06:35]} 23. Bd5 {[%emt 0:10:22]} Rxd6 {[%emt 0:00:56]} 24. exd6 {[%emt 0:00:07]} b6 {[%emt 0:00:26]} 25. Bd4 {[%emt 0:04:37]} Nf6 {[%emt 0:03:28]} 26. Be5 {[%emt 0:00:52]} Bd7 {[%emt 0:04:45]} 27. b3 {[%emt 0:01:25]} Nxd5 {[%emt 0:00:48]} 28. Rxd5 {[%emt 0:01:43]} Bxe5 {[%emt 0:05:25]} 29. fxe5 {[%emt 0:00:50]} Qc8 {[%emt 0:01:26]} 30. h4 {[%emt 0:00:38]} Qe8 {[%emt 0:01:59]} 31. Qc3 {[%emt 0:06:48]} Qe6 {[%emt 0:00:49]} 32. Rd2 {[%emt 0:00:52]} f5 {[%emt 0:02:08]} 33. Qe3 {[%emt 0:03:12]} Ne4 {[%emt 0:06:37]} 34. Rg2 {[%emt 0:02:16]} Qxe5 {[%emt 0:01:28]} 35. Qxb6 {[%emt 0:00:31]} f4 {[%emt 0:07:51]} 36. gxf4 {[%emt 0:01:38]} Qxf4+ {[%emt 0:00:40]} 37. Kg1 {[%emt 0:00:24]} Nd2 {[%emt 0:01:21]} 38. Qf2 {[%emt 0:02:42]} Nf3+ {[%emt 0:00:11]} 39. Kf1 {[%emt 0:00:13]} Bh3 {[%emt 0:00:50]} 40. d7 {[%emt 0:00:58]} Bxg2+ {[%emt 0:30:21]} 0-1

[Event "WSCC 50 Open 2017"]
[Site "?"]
[Date "2017.11.15"]
[Round "8"]
[White "Biro, Sandor"]
[Black "Reprintsev, Alexander"]
[Result "1/2-1/2"]
[ECO "B01"]
[WhiteElo "2168"]
[BlackElo "2361"]
[PlyCount "150"]
[EventDate "2017.??.??"]
[EventType "swiss"]
[EventCountry "ITA"]
[SourceTitle "Acqui Terme"]
[TimeControl "40/5400+30:1800+30"]
[WhiteClock "0:02:09"]
[BlackClock "0:01:30"]

1. e4 {[%emt 0:03:35]} d5 {[%emt 0:04:54]} 2. d4 {[%emt 0:00:11]} dxe4 {[%emt 0:00:16]} 3. Nc3 {[%emt 0:00:06]} e5 {[%emt 0:02:51]} 4. dxe5 {[%emt 0:07:52]} Qxd1+ {[%emt 0:00:06]} 5. Kxd1 {[%emt 0:09:25]} Bf5 {[%emt 0:00:16]} 6. Nge2 {[%emt 0:07:24]} Nc6 {[%emt 0:01:15]} 7. Ng3 {[%emt 0:00:11]} O-O-O+ {[%emt 0:00:42]} 8. Bd2 {[%emt 0:04:03]} Bg6 {[%emt 0:04:28]} 9. Ncxe4 {[%emt 0:06:19]} Nxe5 {[%emt 0:00:15]} 10. Be2 {[%emt 0:02:57]} f5 {[%emt 0:18:41]} 11. Ng5 {[%emt 0:05:35]} Be7 {[%emt 0:06:02]} 12. f4 {[%emt 0:08:22]} Ng4 {[%emt 0:02:25]} 13. Kc1 {[%emt 0:08:20]} Bf6 {[%emt 0:08:37]} 14. h3 {[%emt 0:08:30]} N4h6 {[%emt 0:02:38]} 15. Bd3 {[%emt 0:03:37]} Ne7 {[%emt 0:00:39]} 16. a4 {[%emt 0:02:12]} Nd5 {[%emt 0:02:53]} 17. Re1 {[%emt 0:06:49]} Rhe8 {[%emt 0:01:18]} 18. Rxe8 {[%emt 0:00:23]} Rxe8 {[%emt 0:00:07]} 19. Ra3 {[%emt 0:02:09]} Bd4 {[%emt 0:00:31]} 20. Bc4 {[%emt 0:01:21]} Nf6 {[%emt 0:03:26]} 21. Ne6 {[%emt 0:04:57]} Bf2 {[%emt 0:00:47]} 22. Nh1 {[%emt 0:01:15]} Bg1 {[%emt 0:01:40]} 23. Ng5 {[%emt 0:03:06]} Ne4 {[%emt 0:00:44]} 24. Nxe4 {[%emt 0:00:57]} fxe4 {[%emt 0:01:48]} 25. Be3 {[%emt 0:01:09]} Bxe3+ {[%emt 0:00:12]} 26. Rxe3 {[%emt 0:00:05]} Nf5 {[%emt 0:00:04]} 27. Re1 {[%emt 0:00:17]} Nd6 {[%emt 0:18:22]} 28. Bb3 {[%emt 0:00:23]} Rf8 {[%emt 0:07:17]} 29. g3 {[%emt 0:00:10]} h5 {[%emt 0:00:06]} 30. h4 {[%emt 0:01:42]} Re8 {[%emt 0:01:56]} 31. Nf2 {[%emt 0:00:56]} Nf5 {[%emt 0:02:06]} 32. Rxe4 {[%emt 0:00:32]} Nxg3 {[%emt 0:00:06]} 33. Rxe8+ {[%emt 0:00:22]} Bxe8 {[%emt 0:00:02]} 34. Kd2 {[%emt 0:00:25]} Kd8 {[%emt 0:00:16]} 35. c3 {[%emt 0:00:44]} Nf5 {[%emt 0:00:12]} 36. Bd5 {[%emt 0:00:29]} b6 {[%emt 0:03:42]} 37. Ne4 {[%emt 0:00:22]} Nxh4 {[%emt 0:00:26]} 38. Ng5 {[%emt 0:00:15]} Ke7 {[%emt 0:01:07]} 39. b3 {[%emt 0:00:31]} Bd7 {[%emt 0:00:21]} 40. Kd3 {[%emt 0:00:58]} c6 {[%emt 0:31:21]} 41. Bh1 {[%emt 0:04:28]} Nf5 {[%emt 0:00:00]} 42. Bg2 {[%emt 0:03:24]} Nd6 {[%emt 0:00:00]} 43. b4 {[%emt 0:02:24]} Nf7 {[%emt 0:00:00]} 44. Nf3 {[%emt 0:04:14]} c5 {[%emt 0:00:00]} 45. bxc5 {[%emt 0:04:29]} bxc5 {[%emt 0:00:00]} 46. Kc4 {[%emt 0:00:41]} Kd6 {[%emt 0:00:00]} 47. Nd2 {[%emt 0:02:47]} Bc6 {[%emt 0:00:00]} 48. Ne4+ {[%emt 0:02:22]} Bxe4 {[%emt 0:00:00]} 49. Bxe4 {[%emt 0:00:05]} h4 {[%emt 0:00:00]} 50. Kb5 {[%emt 0:00:24]} h3 {[%emt 0:00:00]} 51. Ka6 {[%emt 0:00:21]} Kc7 {[%emt 0:00:00]} 52. Kxa7 {[%emt 0:00:47]} Nd6 {[%emt 0:00:00]} 53. Bf3 {[%emt 0:03:52]} Nc4 {[%emt 0:00:00]} 54. Ka6 {[%emt 0:00:31]} Na3 {[%emt 0:02:24]} 55. Ka5 {[%emt 0:01:24]} g6 {[%emt 0:01:10]} 56. Ka6 {[%emt 0:00:11]} h2 {[%emt 0:02:17]} 57. Ka5 {[%emt 0:00:11]} Nb1 {[%emt 0:04:03]} 58. Kb5 {[%emt 0:00:10]} Kd6 {[%emt 0:02:48]} 59. a5 {[%emt 0:00:59]} Nxc3+ {[%emt 0:00:05]} 60. Kc4 {[%emt 0:00:53]} Nb1 {[%emt 0:00:06]} 61. Bh1 {[%emt 0:04:00]} Na3+ {[%emt 0:00:13]} 62. Kb3 {[%emt 0:00:10]} Nb5 {[%emt 0:00:12]} 63. Kc4 {[%emt 0:00:12]} Nc7 {[%emt 0:01:19]} 64. Bf3 {[%emt 0:00:25]} Na6 {[%emt 0:00:42]} 65. Bh1 {[%emt 0:00:53]} Ke6 {[%emt 0:00:25]} 66. Be4 {[%emt 0:00:29]} Kf6 {[%emt 0:00:25]} 67. Kb5 {[%emt 0:00:28]} Kg7 {[%emt 0:01:25]} 68. Kc4 {[%emt 0:01:00]} Kh6 {[%emt 0:00:39]} 69. Bf3 {[%emt 0:00:24]} Kh7 {[%emt 0:00:51]} 70. Kb5 {[%emt 0:00:33]} Kg7 {[%emt 0:00:09]} 71. Kc4 {[%emt 0:00:15]} Kf7 {[%emt 0:00:07]} 72. Be4 {[%emt 0:00:34]} Ke7 {[%emt 0:00:14]} 73. Kb5 {[%emt 0:00:30]} Kd6 {[%emt 0:00:13]} 74. Kc4 {[%emt 0:00:20]} Nc7 {[%emt 0:01:32]} 75. Bh1 {[%emt 0:01:35]} Na6 {[%emt 0:00:16]} 1/2-1/2